bitfinex-derivatives/quotes_SOLF0:USTF0_20251201
["timestamp","ask_amount","ask_price","bid_price","bid_amount"]
[1764602794538,7.50689082,124.61,124.53,3.28232269]
[1764602794539,140.8854,124.62,124.53,4.88232269]
[1764602794738,140.8854,124.62,124.53,3.23]
[1764602794942,7.2249,124.6,124.53,3.23]
[1764602795140,140.8854,124.62,124.53,3.23]
[1764602795341,112.3704,124.61,124.53,3.23]
[1764602795543,0.0523297,124.58,124.56,3.28784909]
[1764602796839,7.2779297,124.58,124.56,0.05784909]
[1764602797643,7.2274,124.55,124.45,112.5129]
[1764602797844,112.419,124.56,124.48,3.23]
[1764602798444,7.2279,124.54,124.48,10.4612]
[1764602798749,0.06013526,124.52,124.5,3.28832232]
[1764602799150,0.06013526,124.52,124.5,0.05832232]
[1764602799448,0.06013526,124.52,124.46,3.23]
[1764602799835,7.2303,124.5,124.46,3.23]
[1764602800235,7.2303,124.5,124.47,0.05520305]
[1764602800438,7.2303,124.5,124.47,3.28520305]
[1764602800439,0.053444,124.49,124.47,3.28520305]
[1764602800649,112.4146,124.57,124.47,3.28520305]
[1764602800855,112.4146,124.57,124.47,3.23]
[1764602801445,7.2277,124.55,124.49,3.23]
[1764602801644,0.05180098,124.53,124.51,3.28205845]
[1764602802849,0.00180098,124.53,124.51,3.28205845]
[1764602803044,112.348,124.64,124.53,3.23]
[1764602803244,112.365,124.62,124.53,3.23]
[1764602804044,0.05925441,124.59,124.56,0.05731713]
[1764602804245,0.05925441,124.59,124.56,3.28731713]
[1764602804446,0.05925441,124.59,124.56,0.05731713]
[1764602804752,112.45115441,124.59,124.56,0.05731713]
[1764602805149,7.2258,124.58,124.56,0.05731713]
[1764602805856,112.4071,124.57,124.47,3.23]
[1764602806652,0.05304652,124.53,124.51,0.06126989]
[1764602807252,7.2289,124.52,124.51,0.06126989]
[1764602808359,0.05304652,124.53,124.51,0.06126989]
[1764602810356,0.05304652,124.53,124.51,3.29126989]
[1764602810757,0.00304652,124.53,124.52,3.23]
[1764602811554,0.00304652,124.53,124.51,3.29126989]
[1764602813855,7.23154652,124.53,124.51,3.29126989]
[1764602814056,0.00304652,124.53,124.51,3.29126989]
[1764602816267,0.00304652,124.53,124.52,3.23]
[1764602818268,0.00304652,124.53,124.52,4.83]
[1764602818565,0.00304652,124.53,124.52,1.6]
[1764602818872,125.77984154,124.67,124.57,7.2258]
[1764602819062,13.46054154,124.67,124.57,7.2258]
[1764602819265,41.92054154,124.67,124.56,112.4118]
[1764602819473,112.3347,124.65,124.54,3.27]
[1764602819766,112.3347,124.65,124.53,28.46]
[1764602819767,125.81434154,124.63,124.51,3.27]
[1764602819967,0.05444769,124.58,124.56,3.32830002]
[1764602820171,0.05245852,124.58,124.56,3.32830002]
[1764602820664,0.05245852,124.58,124.56,0.05830002]
[1764602820866,8.87795852,124.58,124.56,0.05830002]
[1764602821066,7.27795852,124.58,124.56,0.05830002]
[1764602822172,8.87795852,124.58,124.56,0.05830002]
[1764602822472,13.46054154,124.57,124.56,0.05830002]
[1764602823867,224.8338,124.56,124.48,6.87711]
[1764602824063,224.8338,124.56,124.49,3.27]
[1764602824262,112.3903,124.59,124.5,3.27]
[1764602824566,238.21594154,124.61,124.51,10.4993]
[1764602824567,266.67594154,124.61,124.51,10.4993]
[1764602824772,266.67594154,124.61,124.51,3.27]
[1764602824773,112.3804,124.6,124.51,3.27]
[1764602825073,0.05443364,124.57,124.54,0.05821182]
[1764602825264,0.05443364,124.57,124.54,3.32821182]
[1764602825960,0.05443364,124.57,124.54,10.55591182]
[1764602826174,35.7035,124.62,124.54,3.32821182]
[1764602826377,35.7035,124.62,124.54,3.27]
[1764602826572,7.2224,124.64,124.57,3.27]
[1764602827067,0.05396235,124.62,124.59,3.32246829]
[1764602828471,0.05396235,124.62,124.6,3.27]
[1764602828665,7.2213,124.66,124.6,3.27]
[1764602829478,7.2199,124.68,124.62,3.27]
[1764602829768,28.46,124.73,124.64,3.32543664]
[1764602829969,28.46,124.73,124.64,3.27]
[1764602830562,140.7238,124.73,124.64,3.27]
[1764602830970,0.05120491,124.7,124.67,0.06044414]
[1764602831571,7.26990491,124.7,124.67,0.06044414]
[1764602831972,0.05120491,124.7,124.67,0.06044414]
[1764602832364,0.05120491,124.7,124.67,3.33044414]
[1764602833570,140.663,124.78,124.67,3.33044414]
[1764602833770,140.663,124.78,124.67,3.27]
[1764602833974,7.2158,124.75,124.67,3.27]
[1764602834672,7.2158,124.75,124.7,3.32748063]
[1764602834673,0.05958955,124.72,124.7,3.32748063]
[1764602834873,0.05958955,124.72,124.7,0.05748063]
[1764602835680,1.65958955,124.72,124.7,0.05748063]
[1764602835877,0.05958955,124.72,124.7,0.05748063]
[1764602836181,1.65958955,124.72,124.62,3.27]
[1764602836371,140.6881,124.73,124.62,3.27]
[1764602836871,28.42,124.73,124.63,3.27]
[1764602837377,0.0615586,124.69,124.67,0.05985153]
[1764602838177,112.3631586,124.69,124.6,3.27]
[1764602838383,112.3016,124.69,124.62,6.86911]
[1764602838573,112.3091,124.68,124.62,10.13911]
[1764602838775,112.3175,124.67,124.62,6.86911]
[1764602838970,154.16964154,124.68,124.62,6.86911]
[1764602839170,0.0533671,124.66,124.64,0.05116069]
[1764602842690,7.2747671,124.66,124.64,0.05116069]
[1764602845981,0.0533671,124.66,124.62,3.44911]
[1764602846178,224.6741,124.65,124.62,3.44911]
[1764602846482,0.0533671,124.66,124.62,3.44911]
[1764602846678,28.4133671,124.66,124.62,3.44911]
[1764602847185,28.4133671,124.66,124.63,0.05675764]
[1764602847371,7.2217,124.65,124.63,0.05675764]
[1764602849180,112.2997,124.69,124.63,0.05675764]
[1764602849181,125.72244154,124.73,124.64,3.21]
[1764602849381,112.2866,124.71,124.64,3.21]
[1764602849582,7.2182,124.71,124.64,3.21]
[1764602850284,0.05609165,124.69,124.66,0.05490231]
[1764602851088,0.05609165,124.69,124.66,3.26490231]
[1764602851889,136.30234909,124.77,124.68,3.21]
[1764602852088,28.34,124.76,124.68,3.21]
[1764602852275,7.2164,124.74,124.68,3.21]
[1764602852586,28.34,124.76,124.68,3.21]
[1764602852889,0.05704003,124.73,124.71,0.06050885]
[1764602853086,0.05704003,124.73,124.71,3.27050885]
[1764602854288,96.26,124.82,124.73,3.21]
[1764602854488,136.47818638,124.85,124.74,3.21]
[1764602854680,28.34,124.85,124.76,3.21]
[1764602855190,0.0589371,124.82,124.79,0.05653403]
[1764602857386,0.0589371,124.82,124.79,3.26653403]
[1764602858282,0.0589371,124.82,124.79,0.05653403]
[1764602858691,0.0589371,124.82,124.79,3.26653403]
[1764602858982,0.0589371,124.82,124.79,0.05653403]
[1764602861884,0.0589371,124.82,124.79,3.26653403]
[1764602862692,0.0589371,124.82,124.79,0.05653403]
[1764602864087,7.2708371,124.82,124.79,0.05653403]
[1764602864490,7.2126,124.81,124.79,0.05653403]
[1764602864795,140.4839,124.8,124.73,3.21]
[1764602865086,112.2168,124.78,124.7,3.21]
[1764602865489,7.2151,124.76,124.7,10.4281]
[1764602865694,112.2402,124.76,124.7,3.21]
[1764602865889,0.05165875,124.74,124.72,0.05912273]
[1764602866097,112.3012,124.69,124.63,3.21]
[1764602866291,140.6012,124.69,124.62,3.44911]
[1764602866698,7.2206,124.67,124.62,6.65911]
[1764602867098,0.05159058,124.66,124.63,0.0614012]
[1764602867490,7.27299058,124.66,124.63,0.0614012]
[1764602868693,119.5574,124.65,124.63,0.0614012]
[1764602869000,147.8574,124.65,124.63,0.0614012]
[1764602870205,28.3,124.65,124.63,0.0614012]
[1764602870500,0.05159058,124.66,124.63,3.2714012]
[1764602870691,140.5732,124.72,124.63,3.2714012]
[1764602870891,112.2823,124.71,124.63,3.21]
[1764602871092,7.2182,124.71,124.63,3.21]
[1764602871404,140.5737,124.72,124.63,3.21]
[1764602871590,0.05566677,124.69,124.66,0.05086949]
[1764602871790,0.05566677,124.69,124.66,3.26086949]
[1764602872906,0.05566677,124.69,124.66,0.05086949]
[1764602873290,7.22,124.68,124.66,0.05086949]
[1764602873490,119.5268,124.68,124.66,0.05086949]
[1764602873696,155.31878702,124.68,124.66,0.05086949]
[1764602874201,7.2212,124.66,124.62,3.44911]
[1764602874503,35.79198702,124.68,124.62,6.65911]
[1764602874797,35.52,124.68,124.62,6.65911]
[1764602875106,0.05411707,124.66,124.64,0.05191187]
[1764602876199,0.05411707,124.66,124.64,3.26191187]
[1764602877199,0.05411707,124.66,124.64,0.05191187]
[1764602877405,0.05411707,124.66,124.64,3.26191187]
[1764602877700,7.49198702,124.74,124.66,3.21]
[1764602878001,112.262,124.73,124.66,3.21]
[1764602878204,7.2181,124.71,124.66,3.21]
[1764602878402,119.74758702,124.74,124.66,3.21]
[1764602878707,112.271,124.72,124.66,3.21]
[1764602878913,7.27786327,124.7,124.68,0.05137756]
[1764602879096,0.05916327,124.7,124.68,0.05137756]
[1764602879804,7.27806327,124.7,124.68,0.05137756]
[1764602880202,0.05916327,124.7,124.68,0.05137756]
[1764602880407,0.05916327,124.7,124.68,3.26137756]
[1764602880902,112.2254,124.78,124.7,3.21]
[1764602881102,140.5109,124.79,124.7,3.21]
[1764602881304,28.3,124.79,124.7,3.21]
[1764602881803,0.05623015,124.76,124.74,3.21]
[1764602882192,0.05623015,124.76,124.73,0.05192416]
[1764602882703,7.2158,124.75,124.73,0.05192416]
[1764602883103,43.00778702,124.75,124.73,0.05192416]
[1764602883303,7.2169,124.73,124.68,3.21]
[1764602884313,0.05720229,124.72,124.69,0.05796087]
[1764602884502,112.2004,124.8,124.71,3.21]
[1764602884703,112.1892,124.82,124.72,3.21]
[1764602885206,112.1947,124.81,124.72,3.21]
[1764602885606,0.05341537,124.78,124.75,0.06118294]
[1764602886212,0.05341537,124.78,124.75,3.27118294]
[1764602887601,0.05341537,124.78,124.75,0.06118294]
[1764602887908,7.49198702,124.77,124.75,0.06118294]
[1764602888608,7.49198702,124.77,124.65,3.21]
[1764602888609,112.2578,124.74,124.65,3.21]
[1764602888810,7.49198702,124.73,124.65,3.21]
[1764602889607,0.05211862,124.7,124.68,0.05666087]
[1764602890302,0.05211862,124.7,124.68,3.26666087]
[1764602890710,0.05211862,124.7,124.68,0.05666087]
[1764602892406,0.05211862,124.7,124.68,3.26666087]
[1764602893011,7.49198702,124.74,124.69,3.21]
[1764602893215,7.49198702,124.77,124.69,3.21]
[1764602893717,7.49198702,124.77,124.68,7.2195]
[1764602894110,0.05943505,124.74,124.71,0.0517777]
[1764602894310,0.05943505,124.74,124.71,3.2617777]
[1764602897317,112.1784,124.83,124.73,3.21]
[1764602897518,112.172,124.83,124.73,3.21]
[1764602898116,7.2119,124.82,124.74,10.426]
[1764602898322,0.05895216,124.79,124.77,0.05420915]
[1764602899611,7.27235216,124.79,124.77,0.05420915]
[1764602900614,8.87235216,124.79,124.77,0.05420915]
[1764602900918,7.27235216,124.79,124.77,0.05420915]
[1764602903820,0.05895216,124.79,124.77,0.05420915]
[1764602906532,7.22334971,124.87,124.78,3.21]
[1764602906729,7.49198702,124.89,124.79,3.21]
[1764602907027,28.28,124.88,124.79,3.21]
[1764602907225,7.49198702,124.86,124.79,7.2131]
[1764602907633,0.05500276,124.84,124.81,0.05705574]
[1764602909318,7.26550276,124.84,124.81,0.05705574]
[1764602909517,0.05500276,124.84,124.81,3.31705574]
[1764602909724,0.05500276,124.84,124.81,0.05705574]
[1764602911135,0.05500276,124.84,124.83,3.26]
[1764602911528,0.05500276,124.84,124.82,10.4715]
[1764602911928,0.05500276,124.84,124.82,3.26]
[1764602912124,0.05500276,124.84,124.81,3.31705574]
[1764602912330,0.05500276,124.84,124.81,0.05705574]
[1764602913838,0.05500276,124.84,124.81,3.31705574]
[1764602916641,0.05500276,124.84,124.82,3.26]
[1764602917950,0.05500276,124.84,124.81,3.31705574]
[1764602918546,140.48070276,124.84,124.81,0.05705574]
[1764602918746,112.1727,124.83,124.74,3.26]
[1764602919150,7.213,124.8,124.74,3.26]
[1764602919759,7.54343488,124.78,124.76,0.0607059]
[1764602919947,112.226,124.77,124.7,3.26]
[1764602920959,0.05344516,124.75,124.72,0.05794253]
[1764602921159,0.05344516,124.75,124.72,3.31794253]
[1764602921460,7.26904516,124.75,124.72,3.31794253]
[1764602921752,0.05344516,124.75,124.72,3.31794253]
[1764602921947,0.05344516,124.75,124.72,10.53514253]
[1764602922145,0.05344516,124.75,124.73,3.26]
[1764602922755,28.26,124.79,124.74,3.26]
[1764602923953,112.27912488,124.78,124.75,0.05054094]
[1764602924155,112.27286095,124.78,124.75,0.0581434]
[1764602924759,112.239,124.76,124.68,3.26]
[1764602925660,0.0602244,124.73,124.71,0.05655697]
[1764602926857,7.2774244,124.73,124.71,0.05655697]
[1764602928356,112.2824,124.71,124.62,13.93171]
[1764602928550,28.26,124.7,124.62,13.93171]
[1764602928766,28.26,124.7,124.63,3.26]
[1764602929367,0.05120227,124.68,124.65,0.06143557]
[1764602930267,7.27100227,124.68,124.65,0.06143557]
[1764602930664,7.2205,124.67,124.65,0.06143557]
[1764602931968,0.05120227,124.68,124.65,3.32143557]
[1764602932172,0.05120227,124.68,124.65,0.06143557]
[1764602932368,28.33120227,124.68,124.65,0.06143557]
[1764602932766,154.07662413,124.68,124.65,0.06143557]
[1764602932967,7.2223,124.64,124.62,3.44911]
[1764602933172,35.5023,124.64,124.62,3.44911]
[1764602933566,28.28,124.64,124.62,3.44911]
[1764602933873,28.33425987,124.64,124.62,3.51018417]
[1764602934468,35.55655987,124.64,124.62,3.51018417]
[1764602934774,28.33425987,124.64,124.62,3.51018417]
[1764602936067,35.55645987,124.64,124.62,3.51018417]
[1764602936465,35.55645987,124.64,124.62,6.77018417]
[1764602936466,0.05425987,124.64,124.62,6.77018417]
[1764602937674,0.05425987,124.64,124.62,3.51018417]
[1764602938071,7.27665987,124.64,124.62,3.51018417]
[1764602938977,0.05425987,124.64,124.62,3.51018417]
[1764602940078,7.27635987,124.64,124.62,3.51018417]
[1764602940877,28.28,124.63,124.62,3.51018417]
[1764602944675,7.27635987,124.64,124.62,3.51018417]
[1764602944981,7.27635987,124.64,124.62,6.78018417]
[1764602944982,0.05425987,124.64,124.62,6.78018417]
[1764602945281,0.05425987,124.64,124.62,3.51018417]
[1764602945678,7.27655987,124.64,124.57,7.2258]
[1764602945982,7.2223,124.64,124.57,7.2258]
[1764602946380,7.2229,124.63,124.57,7.2258]
[1764602946582,0.05561322,124.61,124.59,0.05794696]
[1764602947479,35.5223,124.64,124.59,0.05794696]
[1764602947682,28.3,124.64,124.6,3.27]
[1764602948480,164.9737218,124.68,124.6,3.27]
[1764602948685,0.06087999,124.63,124.61,3.27]
[1764602948883,0.05676402,124.63,124.56,112.4118]
[1764602949082,112.3619,124.62,124.58,0.05122636]
[1764602949285,7.2247,124.6,124.58,0.05122636]
[1764602949786,0.05716786,124.61,124.58,3.32122636]
[1764602951580,125.71612186,124.71,124.61,3.27]
[1764602951784,154.01612186,124.71,124.61,3.27]
[1764602952485,0.05658833,124.67,124.65,0.05628663]
[1764602954289,7.27698833,124.67,124.65,0.05628663]
[1764602954588,0.05658833,124.67,124.65,3.32628663]
[1764602955179,0.05658833,124.67,124.65,0.05628663]
[1764602955585,7.27688833,124.67,124.65,0.05628663]
[1764602956383,28.28,124.66,124.65,0.05628663]
[1764602957696,28.28,124.66,124.58,3.27]
[1764602958487,0.05114476,124.63,124.61,0.05538221]
[1764602958986,7.27374476,124.63,124.61,0.05538221]
[1764602959183,28.28,124.62,124.61,0.05538221]
[1764602960691,0.05114476,124.63,124.61,0.05538221]
[1764602960894,28.28,124.62,124.61,0.05538221]
[1764602963800,140.6453,124.62,124.54,3.27]
[1764602963990,112.3833,124.6,124.54,3.27]
[1764602964294,7.2253,124.59,124.54,3.27]
[1764602964797,0.05422022,124.58,124.55,0.05579583]
[1764602964993,28.35885232,124.58,124.55,0.05579583]
[1764602965993,7.2261,124.57,124.55,0.05579583]
[1764602967696,28.3,124.56,124.55,0.05579583]
[1764602968002,7.2278,124.54,124.48,10.5912]
[1764602968193,7.2278,124.54,124.49,3.26]
[1764602968690,7.2284,124.53,124.49,3.26]
[1764602968887,0.05427572,124.52,124.5,3.31175672]
[1764602971306,0.05427572,124.52,124.5,0.05175672]
[1764602971596,0.05427572,124.52,124.5,3.31175672]
[1764602971993,122.12674206,124.61,124.5,3.31175672]
[1764602971994,7.22334971,124.6,124.54,3.26]
[1764602972190,28.3,124.6,124.54,3.26]
[1764602972998,0.05981839,124.58,124.56,3.31965102]
[1764602973603,0.05981839,124.58,124.56,10.54615102]
[1764602973905,0.05981839,124.58,124.57,3.26]
[1764602974901,28.3,124.63,124.57,3.26]
[1764602975301,28.3,124.63,124.58,3.26]
[1764602975902,28.3,124.63,124.59,3.31720251]
[1764602976103,0.05255221,124.62,124.59,3.31720251]
[1764602976310,23.53470115,124.68,124.59,3.26]
[1764602976506,23.53470115,124.68,124.6,3.26]
[1764602976507,112.3354,124.65,124.6,3.26]
[1764602976811,112.3354,124.65,124.56,3.26]
[1764602977107,112.3426,124.64,124.56,3.26]
[1764602977302,0.05909772,124.61,124.59,0.0582772]
[1764602977902,7.28299772,124.61,124.59,0.0582772]
[1764602982307,7.2226,124.64,124.59,3.3182772]
[1764602982619,52.57296966,124.68,124.59,3.3182772]
[1764602982911,7.2213,124.66,124.62,3.26]
[1764602983319,0.05908483,124.65,124.64,3.26]
[1764602983816,0.05908483,124.65,124.63,3.31299787]
[1764602985111,7.219,124.7,124.64,3.26]
[1764602985304,140.5535,124.72,124.64,3.26]
[1764602985612,2.76825248,124.71,124.64,3.26]
[1764602985807,26.29248148,124.71,124.64,3.26]
[1764602986006,0.05937643,124.69,124.66,0.05512659]
[1764602986402,7.27867643,124.69,124.66,0.05512659]
[1764602986818,7.27867643,124.69,124.66,3.31512659]
[1764602987018,0.05937643,124.69,124.66,3.31512659]
[1764602990419,0.05937643,124.69,124.66,0.05512659]
[1764602991108,7.2198,124.68,124.66,0.05512659]
[1764602992515,7.2213,124.66,124.58,3.26]
[1764602993619,0.0578731,124.63,124.61,3.31564291]
[1764602994318,0.0578731,124.63,124.62,3.26]
[1764602996622,0.0578731,124.63,124.61,0.05564291]
[1764602996823,0.0578731,124.63,124.61,3.31564291]
[1764602997018,0.0578731,124.63,124.61,0.05564291]
[1764602997218,0.0578731,124.63,124.61,3.41564291]
[1764602998916,0.0578731,124.63,124.61,0.05564291]
[1764602999425,7.2231,124.62,124.61,0.05564291]
[1764603000320,7.2241,124.61,124.55,10.5872]
[1764603000525,35.76654863,124.62,124.55,3.36]
[1764603000724,35.76654863,124.62,124.51,112.4517]
[1764603000725,112.3716,124.61,124.51,3.36]
[1764603001431,0.05357013,124.57,124.55,0.06147716]
[1764603001610,0.05357013,124.57,124.55,3.42147716]
[1764603001812,0.05357013,124.57,124.55,0.06147716]
[1764603002012,35.53967013,124.57,124.55,0.06147716]
[1764603003419,7.2279,124.54,124.48,10.5908]
[1764603003919,143.98004863,124.59,124.48,10.5908]
[1764603003920,112.3935,124.59,124.5,3.36]
[1764603004313,140.6322,124.61,124.53,0.06032595]
[1764603004517,0.05390737,124.56,124.53,10.5881]
[1764603004720,0.05390737,124.56,124.54,3.36]
[1764603004914,28.26,124.61,124.54,3.36]
[1764603005116,112.3292,124.66,124.57,3.36]
[1764603006026,0.05179866,124.63,124.6,0.05771677]
[1764603006222,119.87334863,124.62,124.53,3.36]
[1764603006427,112.3668,124.62,124.53,3.36]
[1764603006729,7.2263,124.57,124.53,3.36]
[1764603007326,0.05456566,124.56,124.54,0.06136795]
[1764603007515,0.05456566,124.56,124.54,3.42136795]
[1764603008819,7.2242,124.61,124.55,3.36]
[1764603009626,7.2244,124.6,124.56,3.36]
[1764603009821,0.06053767,124.59,124.57,3.41323178]
[1764603010229,0.06053767,124.59,124.57,0.05323178]
[1764603010623,7.5670863,124.59,124.57,0.05323178]
[1764603010826,112.3974,124.58,124.51,3.36]
[1764603011022,112.3974,124.58,124.46,3.36]
[1764603011023,112.4238,124.55,124.46,3.36]
[1764603011530,7.2291,124.52,124.46,3.36]
[1764603011918,7.2291,124.52,124.48,3.42144089]
[1764603011919,0.05816704,124.5,124.48,3.42144089]
[1764603012125,0.05816704,124.5,124.48,0.06144089]
[1764603012529,0.05816704,124.5,124.48,3.42144089]
[1764603012727,7.28826704,124.5,124.48,0.06144089]
[1764603013124,0.05816704,124.5,124.48,3.42144089]
[1764603014628,0.05816704,124.5,124.48,0.06144089]
[1764603014932,7.28836704,124.5,124.48,0.06144089]
[1764603015136,0.05816704,124.5,124.48,0.06144089]
[1764603015435,7.2307,124.49,124.48,0.06144089]
[1764603015629,0.05816704,124.5,124.48,0.06144089]
[1764603019132,0.05816704,124.5,124.41,3.36]
[1764603019330,7.50654863,124.51,124.41,3.36]
[1764603020132,136.5267,124.53,124.45,0.05261734]
[1764603020133,0.0546779,124.47,124.45,0.05261734]
[1764603020429,0.0546779,124.47,124.45,3.41261734]
[1764603021035,35.78654863,124.54,124.46,3.36]
[1764603021036,28.28,124.54,124.46,3.36]
[1764603021931,28.28,124.54,124.43,3.36]
[1764603021932,7.2299,124.51,124.43,3.36]
[1764603022337,0.05151718,124.48,124.46,0.05351046]
[1764603022540,0.05151718,124.48,124.46,3.41351046]
[1764603023237,7.2287,124.53,124.46,3.41351046]
[1764603023738,7.2287,124.53,124.47,3.36]
[1764603024138,112.4311,124.55,124.47,3.36]
[1764603024139,0.0532206,124.51,124.49,3.41860631]
[1764603024339,7.2276,124.55,124.49,3.41860631]
[1764603024740,7.2283,124.54,124.49,3.41860631]
[1764603024941,119.93474863,124.55,124.46,10.5924]
[1764603025439,0.06136426,124.52,124.49,0.05392432]
[1764603026036,7.2295,124.51,124.49,0.05392432]
[1764603027143,7.2308,124.49,124.42,7.2344]
[1764603027346,7.2308,124.49,124.42,10.5644]
[1764603027540,7.2308,124.49,124.34,337.8372]
[1764603027541,112.5206,124.45,124.34,7.2389]
[1764603027747,112.5206,124.45,124.18,112.7506]
[1764603027748,112.6342,124.32,124.18,112.7506]
[1764603027940,112.6342,124.32,124.19,112.7411]
[1764603028135,35.78654863,124.32,124.2,112.7364]
[1764603028343,0.05895308,124.27,124.24,0.05696981]
[1764603028549,0.05895308,124.27,124.24,0.06000012]
[1764603028748,112.5753,124.39,124.26,120.18504863]
[1764603029047,136.64011036,124.38,124.26,120.18504863]
[1764603029247,112.6341,124.32,124.2,112.7373]
[1764603029440,112.6341,124.32,124.21,112.7286]
[1764603029441,148.46064863,124.32,124.21,112.7286]
[1764603029639,0.05429841,124.28,124.25,0.05805724]
[1764603029841,0.05429841,124.28,124.25,3.15805724]
[1764603030252,28.32,124.32,124.25,3.15805724]
[1764603030454,140.9338,124.34,124.25,3.15805724]
[1764603030751,140.9338,124.34,124.25,3.1]
[1764603030942,119.8454,124.35,124.25,3.1]
[1764603031147,140.9433,124.36,124.27,3.1]
[1764603031343,0.06157221,124.33,124.3,0.05746291]
[1764603031654,0.06157221,124.33,124.3,3.15746291]
[1764603031953,0.06157221,124.33,124.3,0.05746291]
[1764603032744,0.06157221,124.33,124.3,3.15746291]
[1764603034749,28.34,124.39,124.3,3.15746291]
[1764603034951,28.34,124.39,124.3,3.1]
[1764603035149,140.911,124.39,124.3,3.1]
[1764603035460,112.5813,124.38,124.3,3.1]
[1764603035756,0.05504866,124.35,124.34,3.1]
[1764603035953,0.05523906,124.36,124.34,3.1]
[1764603036261,0.05523906,124.36,124.33,0.05339788]
[1764603036449,0.05523906,124.36,124.33,3.15339788]
[1764603036951,8.029,124.67,124.33,3.15339788]
[1764603037153,112.5089,124.46,124.36,3.1]
[1764603037453,7.50654863,124.48,124.36,3.1]
[1764603037656,112.5257,124.44,124.36,3.1]
[1764603038046,0.05566361,124.41,124.39,0.05620993]
[1764603038554,0.05566361,124.41,124.39,3.15620993]
[1764603038950,140.8408,124.47,124.39,3.15620993]
[1764603039257,140.8408,124.47,124.4,3.1]
[1764603039258,28.34,124.47,124.4,3.1]
[1764603040050,0.05752876,124.45,124.42,3.15708169]
[1764603043855,0.05752876,124.45,124.42,0.05708169]
[1764603044251,35.92407739,124.45,124.42,0.05708169]
[1764603044957,28.41752876,124.45,124.42,0.05708169]
[1764603047554,35.92407739,124.45,124.42,0.05708169]
[1764603047763,119.7627,124.44,124.33,3.1]
[1764603047954,7.50654863,124.42,124.33,3.1]
[1764603048358,119.7627,124.44,124.33,3.1]
[1764603048754,119.7627,124.44,124.37,0.05397543]
[1764603048955,0.06107889,124.4,124.38,3.1]
[1764603049161,0.06107889,124.4,124.38,0.05772397]
[1764603052462,28.40107889,124.4,124.38,0.05772397]
[1764603052864,28.40107889,124.4,124.38,3.15772397]
[1764603053062,0.06107889,124.4,124.38,3.15772397]
[1764603053461,28.34,124.46,124.38,3.15772397]
[1764603053658,28.34,124.46,124.34,3.1]
[1764603053863,28.34,124.46,124.36,3.1]
[1764603054060,7.2333,124.45,124.36,3.1]
[1764603054268,28.34,124.46,124.38,3.1]
[1764603054467,0.05513428,124.43,124.41,0.06094162]
[1764603055673,119.82293428,124.43,124.41,0.06094162]
[1764603056165,119.82263428,124.43,124.41,0.06094162]
[1764603056473,7.28963428,124.43,124.41,0.06094162]
[1764603056860,0.05513428,124.43,124.41,0.06094162]
[1764603060858,0.05513428,124.43,124.41,3.22094162]
[1764603061260,28.34,124.46,124.42,3.16]
[1764603062160,0.06171831,124.45,124.43,3.16]
[1764603062569,24.10843373,124.51,124.44,3.16]
[1764603062769,112.4593,124.52,124.44,3.16]
[1764603063275,31.64445495,124.52,124.46,7.2324]
[1764603063469,0.05813696,124.5,124.48,0.05620939]
[1764603064760,0.05813696,124.5,124.44,7.2331]
[1764603065166,0.05813696,124.5,124.44,10.3931]
[1764603065562,0.05813696,124.5,124.41,112.5422]
[1764603065563,0.05813696,124.5,124.46,3.16]
[1764603065762,0.05683767,124.49,124.47,3.21982809]
[1764603065973,28.32,124.53,124.48,3.16]
[1764603066961,0.05280311,124.52,124.48,3.16]
[1764603067968,0.05280311,124.52,124.47,10.45162809]
[1764603068367,0.05280311,124.52,124.48,3.16]
[1764603069473,0.05280311,124.52,124.48,10.3907]
[1764603069669,125.89623579,124.59,124.49,3.16]
[1764603069875,112.4013,124.58,124.48,112.4844]
[1764603070068,112.4152,124.56,124.47,3.16]
[1764603070275,125.92093579,124.56,124.47,3.16]
[1764603070568,7.2279,124.54,124.47,10.3917]
[1764603070771,7.2279,124.54,124.49,3.21646801]
[1764603071371,28.3,124.54,124.49,0.05646801]
[1764603071972,28.3,124.54,124.49,3.21646801]